fUST/lending_fUST_20250113
["ID","MTS","AMOUNT","RATE_DAILY","PERIOD"]
[348700090,1736727037077,-500.0,0.00019178,2]
[348700092,1736727037086,-1198.90777384,0.00019178,2]
[348700230,1736727038595,-404.72222616,0.00019178,2]
[348700232,1736727038604,-500.0,0.00019178,2]
[348700234,1736727038614,-851.55,0.00019178,2]
[348700236,1736727038623,-500.0,0.00019178,2]
[348700238,1736727038633,-500.0,0.00019178,2]
[348700240,1736727038642,-500.0,0.00019178,2]
[348700242,1736727038652,-1460.69,0.00019178,2]
[348700244,1736727038661,-822.99,0.00019178,2]
[348700246,1736727038673,-506.39,0.00019178,2]
[348700248,1736727038682,-500.0,0.00019178,2]
[348700250,1736727038691,-7819.50958756,0.00019178,2]
[348700253,1736727038707,-2733.24041244,0.00019178,2]
[348700255,1736727038716,-833.82,0.00019178,2]
[348700257,1736727038725,-500.0,0.00019178,2]
[348700259,1736727038734,-708.69,0.00019178,2]
[348700261,1736727038743,-500.0,0.00019178,2]
[348700263,1736727038752,-500.0,0.00019178,2]
[348700265,1736727038762,-500.0,0.00019178,2]
[348700277,1736727038865,-1697.01474263,0.00019178,2]
[348700741,1736727043688,-381.34525737,0.00019178,2]
[348700743,1736727043698,-500.0,0.00019178,2]
[348700745,1736727043707,-118.65474263,0.00019178,2]
[348702900,1736727409284,400.0,0.00013973,2]
[348702905,1736728194575,471.0,0.00025,120]
[348702906,1736728195425,1510.69049983,0.00013,2]
[348702937,1736728232500,-347.83443169,0.000189,2]
[348702938,1736728232510,-300.0,0.00018999,2]
[348702940,1736728232521,-1212.15699984,0.00019,2]
[348702942,1736728232532,-2645.41472469,0.00019,2]
[348702944,1736728232543,-6142.42827547,0.00019,2]
[348702946,1736728232552,-8217.6774177,0.00019,2]
[348703012,1736728237918,-978.75395275,0.00019,2]
[348703014,1736728237930,-825.56862955,0.00019,2]
[348703016,1736728237939,-585.621,0.00019,2]
[348703018,1736728237949,-302.8788636,0.00019082,2]
[348703020,1736728237958,-471.67666928,0.00019178,2]
[348703023,1736728237969,-28.32333072,0.00019178,2]
[348703025,1736728237979,-377.53414934,0.00019178,2]
[348703027,1736728237991,-122.46585066,0.00019178,2]
[348703029,1736728238001,-2081.91,0.00019178,2]
[348703031,1736728238010,-500.0,0.00019178,2]
[348703033,1736728238023,-1536.81,0.00019178,2]
[348703035,1736728238032,-500.0,0.00019178,2]
[348703037,1736728238041,-1399.82,0.00019178,2]
[348703039,1736728238051,-816.07,0.00019178,2]
[348703041,1736728238059,-500.0,0.00019178,2]
[348703043,1736728238068,-235.7,0.00019178,2]
[348703045,1736728238078,-799.07,0.00019178,2]
[348703047,1736728238086,-500.0,0.00019178,2]
[348703049,1736728238096,-500.0,0.00019178,2]
[348703052,1736728238105,-717.58,0.00019178,2]
[348703055,1736728238118,-500.0,0.00019178,2]
[348703057,1736728238127,-500.0,0.00019178,2]
[348703059,1736728238136,-500.0,0.00019178,2]
[348703061,1736728238145,-1349.48177474,0.00019178,2]
[348703063,1736728238158,-698.72822526,0.00019178,2]
[348703065,1736728238171,-500.0,0.00019178,2]
[348703067,1736728238180,-500.0,0.00019178,2]
[348703070,1736728238190,-500.0,0.00019178,2]
[348703072,1736728238200,-500.0,0.00019178,2]
[348703074,1736728238209,-500.0,0.00019178,2]
[348703076,1736728238219,-167.279881,0.00019178,2]
[348703078,1736728238228,-153.7,0.00019178,2]
[348703080,1736728238237,-448.53305353,0.00019273,2]
[348703082,1736728238247,-500.0,0.00019299,3]
[348703084,1736728238257,-500.0,0.00019299,3]
[348703086,1736728238266,-788.69,0.00019299,3]
[348703088,1736728238279,-3837.84466801,0.00019299,3]
[348703090,1736728238290,-308.66509464,0.00019299,3]
[348703093,1736728238302,-1846.85900455,0.00019299,3]
[348703095,1736728238314,-673.20529765,0.00019299,3]
[348703208,1736728552634,400.0,0.00013973,2]
[348703301,1736729432483,-3040.4437266,0.00018244,2]
[348703303,1736729432493,-515.30265148,0.000189,2]
[348703305,1736729432503,-585.914,0.00019,2]
[348703307,1736729432512,-183.56741036,0.00019078,2]
[348703309,1736729432521,-1081.36195673,0.0001917,2]
[348703395,1736729438522,-2219.97351829,0.0001917,2]
[348703396,1736729438537,-300.0,0.00019177,2]
[348703397,1736729438546,-500.0,0.00019178,2]
[348703398,1736729438555,-500.0,0.00019178,2]
[348703399,1736729438564,-500.0,0.00019178,2]
[348703400,1736729438573,-500.0,0.00019178,2]
[348703401,1736729438582,-500.0,0.00019178,2]
[348703402,1736729438591,-500.0,0.00019178,2]
[348703404,1736729438601,-500.0,0.00019178,2]
[348703406,1736729438610,-500.0,0.00019178,2]
[348703408,1736729438619,-500.0,0.00019178,2]
[348703409,1736729438628,-500.0,0.00019178,2]
[348703410,1736729438637,-500.0,0.00019178,2]
[348703411,1736729438647,-500.0,0.00019178,2]
[348703412,1736729438656,-500.0,0.00019178,2]
[348703413,1736729438665,-500.0,0.00019178,2]
[348703414,1736729438675,-500.0,0.00019178,2]
[348703415,1736729438683,-507.92054908,0.00019178,2]
[348703416,1736729438692,-500.0,0.00019178,2]
[348703417,1736729438702,-500.0,0.00019178,2]
[348703418,1736729438711,-500.0,0.00019178,2]
[348703419,1736729438720,-500.0,0.00019178,2]
[348703420,1736729438730,-500.0,0.00019178,2]
[348703421,1736729438739,-500.0,0.00019178,2]
[348703422,1736729438748,-496.31338,0.00019178,2]
[348703423,1736729438757,-500.04910794,0.00019178,2]
[348703424,1736729438766,-500.0,0.00019178,2]
[348703425,1736729438775,-500.0,0.00019178,2]
[348703426,1736729438789,-500.0,0.00019178,2]
[348703427,1736729438799,-251.26986538,0.00019178,2]
[348703428,1736729438808,-500.0,0.00019178,2]
[348703429,1736729438817,-497.4012,0.00019178,2]
[348703430,1736729438826,-1541.31,0.00019178,2]
[348703431,1736729438836,-500.0,0.00019178,2]
[348703432,1736729438845,-500.0,0.00019178,2]
[348703433,1736729438854,-500.0,0.00019178,2]
[348703434,1736729438863,-500.0,0.00019178,2]
[348703435,1736729438872,-442.46939933,0.00019178,2]
[348703436,1736729438881,-500.0,0.00019178,2]
[348703437,1736729438891,-500.0,0.00019178,2]
[348703438,1736729438903,-500.0,0.00019178,2]
[348703439,1736729438912,-246.07875013,0.00019178,2]
[348703440,1736729438922,-843.42,0.00019178,2]
[348703441,1736729438931,-1418.22,0.00019178,2]
[348703442,1736729438940,-500.0,0.00019178,2]
[348703443,1736729438949,-500.0,0.00019178,2]
[348703444,1736729438958,-500.0,0.00019178,2]
[348703445,1736729438968,-500.0,0.00019178,2]
[348703446,1736729438977,-500.0,0.00019178,2]
[348703447,1736729438987,-800.44,0.00019178,2]
[348703448,1736729438996,-502.46,0.00019178,2]
[348703449,1736729439005,-500.0,0.00019178,2]
[348703450,1736729439014,-500.0,0.00019178,2]
[348703451,1736729439023,-500.0,0.00019178,2]
[348703452,1736729439035,-500.0,0.00019178,2]
[348703453,1736729439044,-10395.16,0.00019178,2]
[348703454,1736729439054,-500.0,0.00019178,2]
[348703455,1736729439063,-500.0,0.00019178,2]
[348703456,1736729439071,-1962.87,0.00019178,2]
[348703457,1736729439081,-687.68,0.00019178,2]
[348703458,1736729439090,-500.0,0.00019178,2]
[348703459,1736729439099,-500.0,0.00019178,2]
[348703460,1736729439108,-500.0,0.00019178,2]
[348703461,1736729439117,-835.09,0.00019178,2]
[348703462,1736729439126,-500.0,0.00019178,2]
[348703463,1736729439135,-500.0,0.00019178,2]
[348703464,1736729439145,-500.0,0.00019178,2]
[348703465,1736729439154,-500.0,0.00019178,2]
[348703466,1736729439163,-500.0,0.00019178,2]
[348703467,1736729439173,-500.0,0.00019178,2]
[348703468,1736729439182,-593.73,0.00019178,2]
[348703469,1736729439192,-167.279881,0.00019178,2]
[348703470,1736729439201,-153.81,0.00019178,2]
[348703471,1736729439212,-252.9480015,0.00019299,3]
[348703472,1736729439221,-500.60432043,0.00019299,3]
[348703473,1736729439230,-500.0,0.00019299,3]
[348703474,1736729439240,-495.31853385,0.00019299,3]
[348703475,1736729439249,-500.0,0.00019299,3]
[348703476,1736729439259,-500.56473172,0.00019299,3]
[348703477,1736729439378,-500.0,0.00019299,3]
[348703478,1736729439388,-501.76267112,0.00019299,3]
[348703479,1736729439397,-1611.20244167,0.00019299,3]
[348703483,1736729439437,-383.95755833,0.00019299,3]
[348703484,1736729439446,-353.2648614,0.000193,2]
[348703485,1736729439455,-153.0,0.000193,2]
[348703486,1736729439465,-153.8922372,0.000193,2]
[348703487,1736729439474,-214.8637861,0.000193,2]
[348703488,1736729439483,-214.8637861,0.000193,2]
[348703489,1736729439491,-153.8922372,0.000193,2]
[348703490,1736729439501,-353.2648614,0.000193,2]
[348703491,1736729439510,-153.0,0.000193,2]
[348703492,1736729439520,-214.8637861,0.000193,2]
[348703493,1736729439535,-153.0,0.000193,2]
[348703494,1736729439544,-153.8922372,0.000193,2]
[348703496,1736729439553,-535.3993929,0.000193,2]
[348703497,1736729439562,-214.8637861,0.000193,2]
[348703498,1736729439573,-153.8922372,0.000193,2]
[348703499,1736729439582,-153.8922372,0.000193,2]
[348703500,1736729439591,-270.4188547,0.000193,2]
[348703501,1736729439600,-153.0,0.000193,2]
[348703502,1736729439614,-155.9606028,0.000194,2]
[348703503,1736729439623,-402.6526866,0.000194,2]
[348703504,1736729439632,-353.2648614,0.000194,2]
[348703505,1736729439641,-153.8922372,0.000194,2]
[348703506,1736729439651,-154.6506763,0.000194,2]
[348703507,1736729439660,-268.8876699,0.000194,2]
[348703508,1736729439669,-153.0,0.000194,2]
[348703509,1736729439679,-214.8637861,0.000194,2]
[348703510,1736729439688,-353.2648614,0.000194,2]
[348703511,1736729439697,-153.8922372,0.000194,2]
[348703512,1736729439706,-353.2648614,0.000194,2]
[348703513,1736729439715,-153.8922372,0.000194,2]
[348703514,1736729439725,-153.0,0.000194,2]
[348703515,1736729439734,-214.8637861,0.000194,2]
[348703516,1736729439743,-6087.05718436,0.000194,2]
[348703517,1736729439752,-156.422,0.00019437,2]
[348703518,1736729439761,-500.0,0.00019442,2]
[348703520,1736729439770,-282.8691388,0.00019442,2]
[348703522,1736729439780,-500.0,0.00019442,2]
[348703524,1736729439790,-500.0,0.00019442,2]
[348703526,1736729439799,-500.0,0.00019442,2]
[348703528,1736729439807,-500.0,0.00019442,2]
[348703529,1736729439817,-500.0,0.00019442,2]
[348703531,1736729439826,-500.0,0.00019442,2]
[348703534,1736729439835,-579.45254235,0.00019442,2]
[348703536,1736729439843,-500.0,0.00019442,2]
[348703538,1736729439852,-500.0,0.00019442,2]
[348703540,1736729439861,-500.0,0.00019442,2]
[348703542,1736729439870,-500.0,0.00019442,2]
[348703544,1736729439880,-500.0,0.00019442,2]
[348703546,1736729439889,-500.0,0.00019442,2]
[348703548,1736729439898,-500.0,0.00019442,2]
[348703550,1736729439907,-500.0,0.00019442,2]
[348703552,1736729439916,-363.20162059,0.00019442,2]
[348703554,1736729439926,-500.0,0.00019442,2]
[348703556,1736729439935,-500.0,0.00019442,2]
[348703558,1736729439944,-500.0,0.00019442,2]
[348703560,1736729439953,-500.0,0.00019442,2]
[348703562,1736729439962,-500.0,0.00019442,2]
[348703564,1736729439971,-500.0,0.00019442,2]
[348703566,1736729439980,-500.0,0.00019442,2]
[348703568,1736729439989,-500.0,0.00019442,2]
[348703570,1736729439999,-500.0,0.00019442,2]
[348703572,1736729440008,-500.0,0.00019442,2]
[348703574,1736729440017,-500.0,0.00019442,2]
[348703576,1736729440026,-500.0,0.00019442,2]
[348703578,1736729440038,-500.0,0.00019442,2]
[348703580,1736729440047,-500.0,0.00019442,2]
[348703582,1736729440055,-500.0,0.00019442,2]
[348703584,1736729440065,-500.0,0.00019442,2]
[348703586,1736729440075,-500.0,0.00019442,2]
[348703588,1736729440084,-500.0,0.00019442,2]
[348703590,1736729440094,-500.0,0.00019442,2]
[348703592,1736729440104,-500.0,0.00019442,2]
[348703594,1736729440113,-500.0,0.00019442,2]
[348703596,1736729440123,-500.0,0.00019442,2]
[348703598,1736729440132,-500.0,0.00019442,2]
[348703600,1736729440141,-500.0,0.00019442,2]
[348703603,1736729440151,-500.0,0.00019442,2]
[348703605,1736729440160,-307.47666456,0.00019442,2]
[348703607,1736729440169,-500.0,0.00019442,2]
[348703609,1736729440179,-500.0,0.00019442,2]
[348703611,1736729440188,-500.0,0.00019442,2]
[348703613,1736729440197,-500.0,0.00019442,2]
[348703615,1736729440207,-500.0,0.00019442,2]
[348703617,1736729440216,-500.0,0.00019442,2]
[348703619,1736729440225,-500.0,0.00019442,2]
[348703621,1736729440234,-500.0,0.00019442,2]
[348703623,1736729440243,-500.0,0.00019442,2]
[348703625,1736729440252,-500.0,0.00019442,2]
[348703627,1736729440261,-500.0,0.00019442,2]
[348703629,1736729440270,-500.0,0.00019442,2]
[348703631,1736729440279,-500.0,0.00019442,2]
[348703633,1736729440288,-500.0,0.00019442,2]
[348703635,1736729440297,-500.0,0.00019442,2]
[348703637,1736729440307,-500.0,0.00019442,2]
[348703639,1736729440316,-500.0,0.00019442,2]
[348703641,1736729440325,-500.0,0.00019442,2]
[348703643,1736729440335,-500.0,0.00019442,2]
[348703645,1736729440344,-500.0,0.00019442,2]
[348703647,1736729440353,-500.0,0.00019442,2]
[348703649,1736729440362,-500.0,0.00019442,2]
[348703651,1736729440372,-500.0,0.00019442,2]
[348703653,1736729440381,-500.0,0.00019442,2]
[348703655,1736729440391,-500.0,0.00019442,2]
[348703657,1736729440400,-500.0,0.00019442,2]
[348703659,1736729440409,-500.0,0.00019442,2]
[348703661,1736729440418,-500.0,0.00019442,2]
[348703663,1736729440427,-500.0,0.00019442,2]
[348703665,1736729440436,-632.04008837,0.00019442,2]
[348703667,1736729440445,-500.0,0.00019442,2]
[348703669,1736729440455,-500.0,0.00019442,2]
[348703671,1736729440464,-151.0,0.00019444,2]
[348703673,1736729440474,-151.0,0.00019445,2]
[348703675,1736729440483,-510.74363343,0.00019445,2]
[348703677,1736729440492,-151.0,0.00019446,2]
[348703679,1736729440501,-151.0,0.00019449,2]
[348703681,1736729440511,-151.0,0.00019449,2]
[348703683,1736729440520,-151.0,0.00019449,2]
[348703685,1736729440533,-151.0,0.00019449,2]
[348703687,1736729440543,-151.0,0.00019449,2]
[348703689,1736729440552,-151.0,0.00019449,2]
[348703691,1736729440561,-255.26884,0.00019449,2]
[348703693,1736729440571,-151.0,0.00019449,2]
[348703695,1736729440580,-151.0,0.00019449,2]
[348703697,1736729440589,-20728.56813242,0.00019449,2]
[348703699,1736729440598,-151.0,0.00019452,2]
[348703701,1736729440608,-500.0,0.00019452,3]
[348703703,1736729440618,-500.0,0.00019452,3]
[348703705,1736729440626,-500.0,0.00019452,3]
[348703707,1736729440635,-500.0,0.00019452,3]
[348703709,1736729440645,-151.0,0.00019452,2]
[348703711,1736729440654,-1541.31,0.00019452,3]
[348703713,1736729440663,-151.0,0.00019452,2]
[348703715,1736729440673,-151.0,0.00019452,2]
[348703717,1736729440682,-151.0,0.00019452,2]
[348703720,1736729440692,-151.0,0.00019452,2]
[348703722,1736729440701,-500.0,0.00019452,2]
[348703724,1736729440710,-151.0,0.00019452,2]
[348703726,1736729440720,-843.42,0.00019452,3]
[348703728,1736729440729,-1418.22,0.00019452,3]
[348703730,1736729440738,-500.0,0.00019452,3]
[348703732,1736729440747,-800.44,0.00019452,3]
[348703734,1736729440756,-502.46,0.00019452,3]
[348703736,1736729440765,-500.0,0.00019452,3]
[348703738,1736729440775,-500.0,0.00019452,3]
[348703740,1736729440785,-10395.16,0.00019452,3]
[348703742,1736729440794,-500.0,0.00019452,3]
[348703744,1736729440803,-1962.87,0.00019452,3]
[348703746,1736729440814,-687.68,0.00019452,3]
[348703748,1736729440823,-500.0,0.00019452,3]
[348703750,1736729440832,-500.0,0.00019452,3]
[348703752,1736729440841,-835.09,0.00019452,3]
[348703754,1736729440851,-500.0,0.00019452,3]
[348703756,1736729440860,-500.0,0.00019452,3]
[348703757,1736729440869,-380.0346755,0.00019452,3]
[348703759,1736729440879,-500.0,0.00019452,3]
[348703762,1736729440888,-162.0,0.00019536,2]
[348703763,1736729440897,-162.0,0.00019536,2]
[348703766,1736729440906,-162.0,0.00019536,2]
[348703768,1736729440916,-162.0,0.00019536,2]
[348703770,1736729440925,-162.0,0.00019536,2]
[348703772,1736729440934,-162.0,0.00019536,2]
[348703774,1736729440943,-167.91,0.00019536,2]
[348703775,1736729440952,-244.54576506,0.0001956,2]
[348703778,1736729440962,-151.0,0.00019573,2]
[348703780,1736729440971,-188.648253,0.00019573,2]
[348703781,1736729440979,-188.648253,0.00019573,2]
[348703783,1736729440988,-404.33668845,0.00019573,3]
[348703785,1736729440997,-151.0,0.00019573,2]
[348703788,1736729441007,-151.0,0.00019573,2]
[348703790,1736729441017,-501.06213942,0.00019573,3]
[348703791,1736729441025,-151.0,0.00019573,2]
[348703793,1736729441036,-151.0,0.00019573,2]
[348703795,1736729441045,-151.0,0.00019573,2]
[348703798,1736729441054,-1995.16,0.00019573,3]
[348703800,1736729441064,-1000.0,0.00019624,2]
[348703801,1736729441074,-1000.0,0.00019696,2]
[348703803,1736729441083,-405.1754348,0.000197,3]
[348703805,1736729441092,-187.50918826,0.00019724,2]
[348703807,1736729441101,-263.47608874,0.00019724,2]
[348703809,1736729441110,-500.0,0.00019724,2]
[348703810,1736729441120,-207.4050263,0.00019724,2]
[348703811,1736729441129,-183.56741031,0.00019725,2]
[348703812,1736729441138,-151.0,0.00019726,2]
[348703813,1736729441148,-151.0,0.00019726,2]
[348703814,1736729441157,-151.0,0.00019726,2]
[348703815,1736729441166,-151.0,0.00019726,2]
[348703816,1736729441176,-151.0,0.00019726,2]
[348703817,1736729441185,-168.885246,0.00019726,2]
[348703818,1736729441195,-151.0,0.00019726,2]
[348703819,1736729441204,-151.0,0.00019726,2]
[348703820,1736729441213,-1541.31,0.00019726,3]
[348703821,1736729441223,-151.0,0.00019726,2]
[348703823,1736729441232,-186.856791,0.00019726,2]
[348703825,1736729441241,-151.0,0.00019726,2]
[348703827,1736729441251,-151.0,0.00019726,2]
[348703829,1736729441260,-500.0,0.00019726,2]
[348703831,1736729441269,-151.0,0.00019726,2]
[348703832,1736729441278,-843.42,0.00019726,3]
[348703833,1736729441290,-1418.22,0.00019726,3]
[348703834,1736729441299,-500.0,0.00019726,3]
[348703835,1736729441309,-800.44,0.00019726,3]
[348703836,1736729441318,-502.46,0.00019726,3]
[348703837,1736729441328,-10395.16,0.00019726,3]
[348703838,1736729441338,-500.0,0.00019726,3]
[348703839,1736729441347,-1962.87,0.00019726,3]
[348703840,1736729441357,-687.68,0.00019726,3]
[348703841,1736729441366,-500.0,0.00019726,3]
[348703842,1736729441375,-500.0,0.00019726,3]
[348703843,1736729441384,-835.09,0.00019726,3]
[348703844,1736729441394,-500.0,0.00019726,3]
[348703845,1736729441403,-500.0,0.00019726,3]
[348703846,1736729441412,-500.0,0.00019726,3]
[348703847,1736729441424,-151.0,0.00019743,2]
[348703848,1736729441433,-1000.0,0.00019769,2]
[348703849,1736729441443,-151.0,0.00019772,2]
[348703850,1736729441452,-1000.0,0.00019788,2]
[348703851,1736729441461,-188.648253,0.00019795,2]
[348703852,1736729441470,-188.648253,0.00019795,2]
[348703854,1736729441480,-188.7698715,0.00019799,2]
[348703856,1736729441489,-252.849,0.00019805,2]
[348703858,1736729441499,-535.0,0.00019805,2]
[348703859,1736729441509,-2073.0,0.00019805,2]
[348703860,1736729441518,-2327.0,0.00019805,2]
[348703862,1736729441533,-180.272,0.00019805,2]
[348703864,1736729441543,-408.13,0.00019805,2]
[348703866,1736729441552,-151.0,0.00019805,2]
[348703868,1736729441561,-1000.0,0.00019824,2]
[348703870,1736729441570,-151.0,0.00019847,2]
[348703872,1736729441580,-218.465778,0.00019847,2]
[348703881,1736729441669,-1995.16,0.00019847,3]
[348703882,1736729441678,-15583.9858476,0.000199,2]
[348703883,1736729441687,-151.0,0.000199,2]
[348703884,1736729441696,-255.10654,0.000199,2]
[348703885,1736729441706,-151.0,0.000199,2]
[348703886,1736729441715,-151.0,0.000199,2]
[348703887,1736729441724,-151.0,0.000199,2]
[348703888,1736729441733,-151.0,0.000199,2]
[348703889,1736729441742,-151.0,0.000199,2]
[348703890,1736729441751,-151.0,0.000199,2]
[348703891,1736729441760,-41529.35788274,0.0002,5]
[348703892,1736729441774,-5612.01787218,0.0002,5]
[348703941,1736729445982,-500.0,0.00019178,2]
[348703943,1736729445991,-500.0,0.00019178,2]
[348703945,1736729446001,-22979.378412,0.0002,5]
[348703947,1736729446012,-4166.56429998,0.0002,5]
[348703950,1736729446024,-5076.58065023,0.0002,5]
[348703952,1736729446032,-4009.31216633,0.0002,2]
[348703954,1736729446044,-199.0986425,0.0002,2]
[348704047,1736729468833,400.0,0.00013973,2]
[348704070,1736730300273,390.373211,0.00013973,2]
[348704130,1736730632316,-4601.94817101,0.00016713,2]
[348704132,1736730632325,-1652.45696686,0.00016882,2]
[348704134,1736730632336,-5013.34179084,0.00018114,2]
[348704136,1736730632347,-302.0,0.00018114,2]
[348704546,1736730643308,-12717.03064003,0.00018114,2]
[348704547,1736730643320,-3934.68911654,0.00018114,2]
[348704548,1736730643332,-2932.93845259,0.00018114,2]
[348704549,1736730643344,-165.78345393,0.000188,2]
[348704550,1736730643353,-462.0873757,0.000189,2]
[348704552,1736730643363,-612.085,0.00019,2]
[348704554,1736730643373,-448.53305354,0.00019,2]
[348704555,1736730643382,-497.27341266,0.00019036,2]
[348704557,1736730643391,-188.95286415,0.00019073,2]
[348704558,1736730643400,-8920.11128069,0.00019078,2]
[348704583,1736730646296,-500.0,0.00019078,2]
[348704586,1736731271936,378.754406,0.00013973,2]
[348704587,1736731421126,541.27,0.00015052,7]
[348704640,1736731833121,-620.86214281,0.00016,2]
[348704641,1736731833130,-283.3321494,0.00017914,2]
[348704642,1736731833140,-1022.8804872,0.00017957,2]
[348704643,1736731833149,-198.62091613,0.00018072,2]
[348704644,1736731833159,-300.0,0.00018721,2]
[348704645,1736731833168,-11104.18591873,0.00018722,2]
[348704646,1736731833178,-412.22214549,0.000189,2]
[348704647,1736731833188,-611.713,0.00019,2]
[348704648,1736731833198,-4906.58974517,0.00019,2]
[348704649,1736731833208,-302.72757545,0.00019,2]
[348704650,1736731833217,-168.07272901,0.00019062,2]
[348704651,1736731833226,-2857.29347046,0.00019078,2]
[348704680,1736731838566,-783.13664405,0.00019078,2]
[348704683,1736731838577,-2547.38564682,0.00019078,2]
[348705039,1736731843714,-6262.29624126,0.00019078,2]
[348705050,1736731846504,-1488.95037351,0.00019078,2]
[348705055,1736731862146,9759.49823,0.0001,2]
[348705058,1736732277101,19.41365317,0.00013973,2]
[348705059,1736732277134,348.57183783,0.00013973,2]
[348705060,1736732288407,171.906104,0.00025,120]
[348705064,1736732839895,1069058.12045512,0.00025,120]
[348705393,1736733038692,-189.1756707,0.00018102,2]
[348705394,1736733038701,-3643.0009943,0.00018811,2]
[348705414,1736733043892,-3078.37179807,0.00018811,2]
[348705431,1736733385309,427.0,0.00025,120]
[348705432,1736733457135,349.586216,0.00013973,2]
[348705463,1736734237550,-533.67858024,0.00017969,2]
[348705466,1736734237560,-122.09901007,0.00018069,2]
[348705468,1736734237572,-146.67624803,0.00018069,2]
[348705470,1736734237582,-473.86426272,0.0001813,2]
[348705473,1736734237780,-162.36573728,0.0001813,2]
[348705475,1736734237792,-4493.94655882,0.00018461,2]
[348705476,1736734237803,-580.2457817,0.00018887,2]
[348705477,1736734237812,-245.55248757,0.00019,2]
[348705478,1736734237821,-214.8637861,0.00019,2]
[348705479,1736734237831,-153.0,0.00019,2]
[348705480,1736734237840,-170.03715303,0.00019041,2]
[348705481,1736734237849,-184.96429759,0.00019041,2]
[348705482,1736734237859,-300.0,0.00019076,2]
[348705483,1736734237869,-20413.20004079,0.00019077,5]
[348705484,1736734237881,-618.6632773,0.00019077,5]
[348705485,1736734237893,-4739.0463156,0.00019077,5]
[348705486,1736734237903,-2875.61395792,0.00019077,5]
[348705487,1736734237914,-525.05090305,0.00019077,5]
[348705488,1736734237925,-257.20078697,0.00019077,5]
[348705489,1736734237935,-11.00876603,0.00019077,2]
[348705490,1736734237946,-499.563478,0.00019077,2]
[348705491,1736734237958,-157.15844635,0.00019077,2]
[348705492,1736734237967,-231.2063182,0.00019078,7]
[348705493,1736734237976,-735.34301193,0.00019078,2]
[348705494,1736734237987,-1893.56,0.00019078,2]
[348705545,1736734238997,-371.09698807,0.00019078,2]
[348705548,1736734239007,-9381.56671805,0.00019078,2]
[348705551,1736734239016,-154.58,0.000191,2]
[348705554,1736734239026,-432.9037031,0.000191,2]
[348705556,1736734239036,-153.0,0.000191,2]
[348705558,1736734239046,-71.270973,0.000191,2]
[348705845,1736734413808,332.106905,0.00013973,2]
[348705848,1736735215601,485.6901385,0.00025,120]
[348705849,1736735283568,315.501559,0.00013973,2]
[348705867,1736735436439,-195.31796945,0.00017987,2]
[348705868,1736735436450,-349.5532454,0.00018018,2]
[348705869,1736735436459,-155.26083357,0.00018087,2]
[348705870,1736735436469,-635.351,0.0001814,2]
[348705872,1736735436479,-3643.0009943,0.00018696,2]
[348705873,1736735436488,-5000.0,0.000188,2]
[348705874,1736735436497,-300.0,0.00018814,2]
[348705875,1736735436507,-290.1228908,0.00018908,2]
[348705876,1736735436516,-4540.36490717,0.00019,2]
[348706357,1736735592047,160.0,0.00023,120]
[348706359,1736735608310,160.0,0.00023,120]
[348706363,1736735814260,200.6499993,0.00025,120]